[Event "GER-chW Blitz 2019"]
[Site "Magdeburg"]
[Date "2019.05.25"]
[Round "17.11"]
[White "Kunze, Kerstin"]
[Black "Sieber, Fiona"]
[Result "0-1"]
[ECO "B51"]
[WhiteElo "2066"]
[BlackElo "2250"]
[Annotator "NA"]
[PlyCount "92"]
[EventDate "2019.05.25"]
[EventType "tourn"]
[EventCountry "GER"]
[SourceTitle "playchess.com"]
[Source "ChessBase"]
[SourceQuality "1"]
[TimeControl "180+2"]

1. e4 {[%emt 0:00:00]} c5 {[%emt 0:00:00]} 2. Nf3 {[%emt 0:00:02]} d6 {[%emt 0:00:00]} 3. Bb5+ {[%emt 0:00:02]} Nd7 {[%emt 0:00:03]} 4. O-O {[%emt 0:00:02]} a6 {[%emt 0:00:01]} 5. Bxd7+ {[%emt 0:00:03]} Bxd7 {[%emt 0:00:02]} 6. Re1 {[%emt 0:00:01]} Nf6 {[%emt 0:00:02]} 7. Nc3 {[%emt 0:00:02]} g6 {[%emt 0:00:09]} 8. d3 {[%emt 0:00:07]} Bg7 {[%emt 0:00:02]} 9. h3 {[%emt 0:00:03]} O-O {[%emt 0:00:02]} 10. Bg5 {[%emt 0:00:04]} b5 {[%emt 0:00:07]} 11. Qd2 {[%emt 0:00:04]} Bc6 {[%emt 0:00:04]} 12. Bh6 {[%emt 0:00:05]} b4 {[%emt 0:00:06]} 13. Nd1 {[%emt 0:00:02]} e5 {[%emt 0:00:07]} 14. Bxg7 {[%emt 0:00:07]} Kxg7 {[%emt 0:00:01]} 15. Ne3 {[%emt 0:00:14]} Nh5 {[%emt 0:00:04]} 16. g3 {[%emt 0:00:11]} f5 {[%emt 0:00:06]} 17. Qe2 {[%emt 0:00:24]} fxe4 {[%emt 0:00:09]} 18. dxe4 {[%emt 0:00:02]} Bxe4 {[%emt 0:00:04]} 19. Nd2 {[%emt 0:00:12]} Bb7 {[%emt 0:00:12]} 20. Ng4 {[%emt 0:00:06]} Nf6 {[%emt 0:00:09]} 21. Nc4 {[%emt 0:00:10]} Nxg4 {[%emt 0:00:09]} 22. Qxg4 {[%emt 0:00:07]} Qf6 {[%emt 0:00:17]} 23. f4 {[%emt 0:00:08]} exf4 {[%emt 0:00:22]} 24. Qxf4 {[%emt 0:00:08]} Qxf4 {[%emt 0:00:07]} 25. gxf4 {[%emt 0:00:01]} Rad8 {[%emt 0:00:15]} 26. Rad1 {[%emt 0:00:39]} d5 {[%emt 0:00:07]} 27. Nb6 {[%emt 0:00:20]} Rxf4 {[%emt 0:00:06]} 28. Re5 {[%emt 0:00:17]} Rf5 {[%emt 0:00:06]} 29. Re7+ {[%emt 0:00:02]} Rf7 {[%emt 0:00:01]} 30. Re5 {[%emt 0:00:00]} Rd6 {[%emt 0:00:08]} 31. Nc4 {[%emt 0:00:12]} Rdf6 {[%emt 0:00:06]} 32. Ne3 {[%emt 0:00:04]} d4 {[%emt 0:00:09]} 33. Ng4 {[%emt 0:00:00]} Rf5 {[%emt 0:00:05]} 34. Re6 {[%emt 0:00:01]} Bf3 {[%emt 0:00:05]} 35. Rde1 {[%emt 0:00:03]} a5 {[%emt 0:00:05]} 36. Ne5 {[%emt 0:00:01]} R7f6 {[%emt 0:00:04]} 37. Re7+ {[%emt 0:00:01]} Kh6 {[%emt 0:00:01]} 38. Rf1 {[%emt 0:00:02]} Bd5 {[%emt 0:00:05]} 39. Ng4+ {[%emt 0:00:01]} Kg5 {[%emt 0:00:02]} 40. Nxf6 {[%emt 0:00:01]} Rxf6 {[%emt 0:00:02]} 41. Rxf6 {[%emt 0:00:00]} Kxf6 {[%emt 0:00:02]} 42. Rxh7 {[%emt 0:00:01]} c4 {[%emt 0:00:02]} 43. Ra7 {[%emt 0:00:02]} d3 {[%emt 0:00:02]} 44. cxd3 {[%emt 0:00:04]} cxd3 {[%emt 0:00:02]} 45. Rd7 {[%emt 0:00:01]} Ke6 {[%emt 0:00:02]} 46. Rc7 {[%emt 0:00:08]} d2 {[%emt 0:00:02]} 0-1

[Event "GER-chW Blitz 2019"]
[Site "Magdeburg"]
[Date "2019.05.25"]
[Round "17.12"]
[White "Kreismann, Franziska"]
[Black "Daemering, Katrin"]
[Result "0-1"]
[ECO "A43"]
[WhiteElo "1589"]
[BlackElo "2003"]
[Annotator "NA"]
[PlyCount "56"]
[EventDate "2019.05.25"]
[EventType "tourn"]
[EventCountry "GER"]
[SourceTitle "playchess.com"]
[Source "ChessBase"]
[SourceQuality "1"]
[TimeControl "180+2"]

1. d4 {[%emt 0:00:00]} c5 {[%emt 0:00:00]} 2. dxc5 {[%emt 0:00:00]} e6 {[%emt 0:00:01]} 3. e3 {[%emt 0:00:02]} Bxc5 {[%emt 0:00:02]} 4. Nc3 {[%emt 0:00:01]} Nf6 {[%emt 0:00:01]} 5. Nf3 {[%emt 0:00:01]} O-O {[%emt 0:00:02]} 6. Bc4 {[%emt 0:00:02]} d5 {[%emt 0:00:02]} 7. Bb3 {[%emt 0:00:02]} Nc6 {[%emt 0:00:07]} 8. Nd4 {[%emt 0:00:04]} Ne7 {[%emt 0:00:10]} 9. O-O {[%emt 0:00:04]} a6 {[%emt 0:00:01]} 10. a3 {[%emt 0:00:03]} Bd7 {[%emt 0:00:04]} 11. Nce2 {[%emt 0:00:05]} Rc8 {[%emt 0:00:11]} 12. c3 {[%emt 0:00:10]} b5 {[%emt 0:00:03]} 13. Bc2 {[%emt 0:00:01]} e5 {[%emt 0:00:13]} 14. Nf3 {[%emt 0:00:05]} Bd6 {[%emt 0:00:03]} 15. b4 {[%emt 0:00:17]} Be6 {[%emt 0:00:07]} 16. Bb2 {[%emt 0:00:03]} h6 {[%emt 0:00:02]} 17. Ng3 {[%emt 0:00:10]} Qd7 {[%emt 0:00:19]} 18. Re1 {[%emt 0:00:09]} Rfd8 {[%emt 0:00:02]} 19. e4 {[%emt 0:00:07]} Bg4 {[%emt 0:00:22]} 20. h3 {[%emt 0:00:04]} Bxf3 {[%emt 0:00:04]} 21. Qxf3 {[%emt 0:00:07]} d4 {[%emt 0:00:06]} 22. cxd4 {[%emt 0:00:08]} Rxc2 {[%emt 0:00:02]} 23. dxe5 {[%emt 0:00:03]} Rxb2 {[%emt 0:00:06]} 24. exf6 {[%emt 0:00:02]} Ng6 {[%emt 0:00:05]} 25. fxg7 {[%emt 0:00:08]} Be5 {[%emt 0:00:11]} 26. Rad1 {[%emt 0:00:10]} Rd2 {[%emt 0:00:03]} 27. Rxd2 {[%emt 0:00:16]} Qxd2 {[%emt 0:00:01]} 28. Nf5 {[%emt 0:00:01]} Qxe1# {[%emt 0:00:04] Kh2 [%clk 0:01:31]} 0-1

[Event "GER-chW Blitz 2019"]
[Site "Magdeburg"]
[Date "2019.05.25"]
[Round "18.1"]
[White "Roesler, Hannah Clara Hed"]
[Black "Daemering, Katrin"]
[Result "0-1"]
[ECO "B22"]
[WhiteElo "1619"]
[BlackElo "2003"]
[Annotator "NA"]
[PlyCount "61"]
[EventDate "2019.05.25"]
[EventType "tourn"]
[EventCountry "GER"]
[SourceTitle "playchess.com"]
[Source "ChessBase"]
[SourceQuality "1"]
[TimeControl "180+2"]

1. e4 {[%emt 0:00:00]} c5 {[%emt 0:00:00]} 2. c3 {[%emt 0:00:00]} Nf6 {[%emt 0:00:01]} 3. e5 {[%emt 0:00:01]} Nd5 {[%emt 0:00:02]} 4. d4 {[%emt 0:00:01]} cxd4 {[%emt 0:00:02]} 5. Nf3 {[%emt 0:00:00]} e6 {[%emt 0:00:02]} 6. cxd4 {[%emt 0:00:02]} Nc6 {[%emt 0:00:03]} 7. a3 {[%emt 0:00:05]} d6 {[%emt 0:00:02]} 8. Bd3 {[%emt 0:00:07]} dxe5 {[%emt 0:00:13]} 9. dxe5 {[%emt 0:00:17]} a6 {[%emt 0:00:19]} 10. O-O {[%emt 0:00:07]} h6 {[%emt 0:00:04]} 11. Qe2 {[%emt 0:00:04]} Bd7 {[%emt 0:00:04]} 12. Rd1 {[%emt 0:00:07]} Rc8 {[%emt 0:00:05]} 13. Bc4 {[%emt 0:00:12]} Nde7 {[%emt 0:00:29]} 14. Nc3 {[%emt 0:00:22]} Ng6 {[%emt 0:00:21]} 15. Bd3 {[%emt 0:00:25]} Bc5 {[%emt 0:00:29]} 16. Bxg6 {[%emt 0:00:20]} fxg6 {[%emt 0:00:01]} 17. Ne4 {[%emt 0:00:08]} Be7 {[%emt 0:00:03]} 18. Nd6+ {[%emt 0:00:07]} Bxd6 {[%emt 0:00:04]} 19. Rxd6 {[%emt 0:00:01]} Qe7 {[%emt 0:00:08]} 20. Qe4 {[%emt 0:00:15]} Qf7 {[%emt 0:00:23]} 21. Be3 {[%emt 0:00:11]} O-O {[%emt 0:00:05]} 22. Rad1 {[%emt 0:00:08]} Be8 {[%emt 0:00:05]} 23. Nh4 {[%emt 0:00:11]} g5 {[%emt 0:00:06]} 24. Nf3 {[%emt 0:00:06]} Ne7 {[%emt 0:00:05]} 25. Rb6 {[%emt 0:00:07]} Nd5 {[%emt 0:00:05]} 26. Rb3 {[%emt 0:00:14]} b5 {[%emt 0:00:02]} 27. Rbd3 {[%emt 0:00:05]} Qh5 {[%emt 0:00:03]} 28. Nd4 {[%emt 0:00:04]} Bg6 {[%emt 0:00:05]} 29. Nxe6 {[%emt 0:00:08]} Bxe4 {[%emt 0:00:02]} 30. Nc5 Bxd3 31. Rxd3 0-1

[Event "GER-chW Blitz 2019"]
[Site "Magdeburg"]
[Date "2019.05.25"]
[Round "18.2"]
[White "Sieber, Fiona"]
[Black "Kreismann, Franziska"]
[Result "1-0"]
[ECO "B12"]
[WhiteElo "2250"]
[BlackElo "1589"]
[Annotator "NA"]
[PlyCount "43"]
[EventDate "2019.05.25"]
[EventType "tourn"]
[EventCountry "GER"]
[SourceTitle "playchess.com"]
[Source "ChessBase"]
[SourceQuality "1"]
[TimeControl "180+2"]

1. e4 {[%emt 0:00:00]} c6 {[%emt 0:00:00]} 2. d4 {[%emt 0:00:00]} d5 {[%emt 0:00:00]} 3. e5 {[%emt 0:00:01]} Bf5 {[%emt 0:00:00]} 4. Nf3 {[%emt 0:00:01]} Bg6 {[%emt 0:00:01]} 5. Be2 {[%emt 0:00:02]} e6 {[%emt 0:00:01]} 6. O-O {[%emt 0:00:11]} Nd7 {[%emt 0:00:00]} 7. Nbd2 {[%emt 0:00:05]} c5 {[%emt 0:00:01]} 8. c4 {[%emt 0:00:11]} cxd4 {[%emt 0:00:04]} 9. cxd5 {[%emt 0:00:03]} exd5 {[%emt 0:00:02]} 10. Nb3 {[%emt 0:00:06]} Nb6 {[%emt 0:00:19]} 11. Bb5+ {[%emt 0:00:09]} Nd7 {[%emt 0:00:07]} 12. Nbxd4 {[%emt 0:00:02]} a6 {[%emt 0:00:02]} 13. Bd3 {[%emt 0:00:19]} Bxd3 {[%emt 0:00:03]} 14. Qxd3 {[%emt 0:00:02]} Bc5 {[%emt 0:00:09]} 15. Nf5 {[%emt 0:00:11]} Ne7 {[%emt 0:00:19]} 16. Nxg7+ {[%emt 0:00:04]} Kf8 {[%emt 0:00:01]} 17. Bh6 {[%emt 0:00:02]} Kg8 {[%emt 0:00:09]} 18. e6 {[%emt 0:00:24]} Nf6 {[%emt 0:00:20]} 19. exf7+ {[%emt 0:00:10]} Kxf7 {[%emt 0:00:01]} 20. Ne5+ {[%emt 0:00:06]} Kg8 {[%emt 0:00:18]} 21. Ne6 {[%emt 0:00:15]} Qb6 {[%emt 0:00:27]} 22. Qg3+ {[%emt 0:00:13]} 1-0

[Event "GER-chW Blitz 2019"]
[Site "Magdeburg"]
[Date "2019.05.25"]
[Round "18.3"]
[White "Osmanodja, Filiz"]
[Black "Kunze, Kerstin"]
[Result "1-0"]
[ECO "C96"]
[WhiteElo "2260"]
[BlackElo "2066"]
[Annotator "NA"]
[PlyCount "81"]
[EventDate "2019.05.25"]
[EventType "tourn"]
[EventCountry "GER"]
[SourceTitle "playchess.com"]
[Source "ChessBase"]
[SourceQuality "1"]
[TimeControl "180+2"]

1. e4 {[%emt 0:00:00]} e5 {[%emt 0:00:00]} 2. Nf3 {[%emt 0:00:00]} Nc6 3. Bb5 a6 4. Ba4 Nf6 {[%emt 0:00:03]} 5. O-O {[%emt 0:00:03]} b5 6. Bb3 Be7 {[%emt 0:00:02]} 7. Re1 {[%emt 0:00:01]} O-O {[%emt 0:00:02]} 8. h3 {[%emt 0:00:00]} d6 {[%emt 0:00:08]} 9. c3 {[%emt 0:00:01]} Na5 {[%emt 0:00:03]} 10. Bc2 {[%emt 0:00:01]} c5 {[%emt 0:00:03]} 11. d4 {[%emt 0:00:01]} Nc6 {[%emt 0:00:19]} 12. a4 {[%emt 0:00:13]} Bb7 {[%emt 0:00:02]} 13. d5 {[%emt 0:00:07]} Nb8 {[%emt 0:00:12]} 14. b4 {[%emt 0:00:02]} Nbd7 {[%emt 0:00:22]} 15. Na3 {[%emt 0:00:07]} cxb4 {[%emt 0:00:19]} 16. cxb4 {[%emt 0:00:03]} bxa4 {[%emt 0:00:01]} 17. Bxa4 {[%emt 0:00:01]} Nb6 {[%emt 0:00:01]} 18. Bb3 {[%emt 0:00:14]} Qd7 {[%emt 0:00:12]} 19. Be3 {[%emt 0:00:06]} Bd8 {[%emt 0:00:26]} 20. Qd3 {[%emt 0:00:19]} Nh5 {[%emt 0:00:09]} 21. Nc4 {[%emt 0:00:17]} Nxc4 {[%emt 0:00:04]} 22. Bxc4 {[%emt 0:00:01]} f5 {[%emt 0:00:09]} 23. exf5 {[%emt 0:00:27]} Rxf5 {[%emt 0:00:01]} 24. Nd2 {[%emt 0:00:18]} Nf4 {[%emt 0:00:06]} 25. Bxf4 {[%emt 0:00:05]} Rxf4 {[%emt 0:00:02]} 26. Re4 {[%emt 0:00:18]} Bg5 {[%emt 0:00:04]} 27. Rxf4 {[%emt 0:00:17]} Bxf4 28. Ne4 Rc8 {[%emt 0:00:26]} 29. Bxa6 {[%emt 0:00:11]} Bxa6 {[%emt 0:00:01]} 30. Qxa6 {[%emt 0:00:04]} Qf5 {[%emt 0:00:02]} 31. Nxd6 {[%emt 0:00:16]} Bh2+ 32. Kxh2 {[%emt 0:00:06]} Qf4+ {[%emt 0:00:20]} 33. Kg1 {[%emt 0:00:07]} Rf8 {[%emt 0:00:02]} 34. Rf1 {[%emt 0:00:05]} e4 {[%emt 0:00:01]} 35. Nc4 {[%emt 0:00:04]} h6 {[%emt 0:00:01]} 36. Ne3 {[%emt 0:00:02]} Rf6 {[%emt 0:00:01]} 37. Qc8+ {[%emt 0:00:01]} Kh7 {[%emt 0:00:01]} 38. Qc4 {[%emt 0:00:02]} Rg6 {[%emt 0:00:02]} 39. Kh1 {[%emt 0:00:04]} Rd6 {[%emt 0:00:04]} 40. b5 {[%emt 0:00:01]} Qf6 {[%emt 0:00:01]} 41. Qxe4+ {[%emt 0:00:02] Rb6} 1-0

[Event "GER-chW Blitz 2019"]
[Site "Magdeburg"]
[Date "2019.05.25"]
[Round "18.4"]
[White "Michna, Marta"]
[Black "Gheng, Simona"]
[Result "1-0"]
[ECO "A04"]
[WhiteElo "2355"]
[BlackElo "1991"]
[Annotator "NA"]
[PlyCount "136"]
[EventDate "2019.05.25"]
[EventType "tourn"]
[EventCountry "GER"]
[SourceTitle "playchess.com"]
[Source "ChessBase"]
[SourceQuality "1"]
[TimeControl "180+2"]

1. Nf3 {[%emt 0:00:00]} c5 {[%emt 0:00:00]} 2. g3 {[%emt 0:00:01]} d6 {[%emt 0:00:00]} 3. Bg2 {[%emt 0:00:01]} Nf6 {[%emt 0:00:01]} 4. d3 {[%emt 0:00:00]} g6 {[%emt 0:00:01]} 5. e4 {[%emt 0:00:01]} Bg7 {[%emt 0:00:01]} 6. O-O {[%emt 0:00:01]} Nc6 {[%emt 0:00:01]} 7. c3 {[%emt 0:00:01]} O-O {[%emt 0:00:01]} 8. a4 {[%emt 0:00:01]} a6 {[%emt 0:00:01]} 9. Re1 {[%emt 0:00:03]} Bg4 {[%emt 0:00:02]} 10. h3 {[%emt 0:00:04]} Bd7 {[%emt 0:00:01]} 11. Be3 {[%emt 0:00:11]} Rc8 {[%emt 0:00:02]} 12. Na3 {[%emt 0:00:05]} Ne5 {[%emt 0:00:03]} 13. Nxe5 {[%emt 0:00:03]} dxe5 {[%emt 0:00:01]} 14. Nc4 {[%emt 0:00:02]} Qc7 {[%emt 0:00:23]} 15. f4 {[%emt 0:00:21]} Ne8 {[%emt 0:00:09]} 16. Nxe5 {[%emt 0:00:06]} Bxe5 {[%emt 0:00:02]} 17. fxe5 {[%emt 0:00:01]} Qxe5 {[%emt 0:00:01]} 18. Bf4 {[%emt 0:00:07]} Qe6 {[%emt 0:00:02]} 19. Bh6 {[%emt 0:00:11]} Ng7 {[%emt 0:00:01]} 20. Qf3 {[%emt 0:00:02]} Bc6 21. Qe3 {[%emt 0:00:14]} b6 {[%emt 0:00:13]} 22. a5 {[%emt 0:00:06]} Bb7 {[%emt 0:00:18]} 23. axb6 {[%emt 0:00:05]} Qxb6 {[%emt 0:00:01]} 24. Re2 {[%emt 0:00:01]} Rfd8 {[%emt 0:00:09]} 25. Rf2 {[%emt 0:00:13]} f6 {[%emt 0:00:06]} 26. Bxg7 {[%emt 0:00:34]} Kxg7 {[%emt 0:00:01]} 27. e5 {[%emt 0:00:20]} Bxg2 {[%emt 0:00:24]} 28. exf6+ {[%emt 0:00:12]} exf6 {[%emt 0:00:01]} 29. Kxg2 {[%emt 0:00:06]} Re8 {[%emt 0:00:07]} 30. Qf4 {[%emt 0:00:06]} Re6 {[%emt 0:00:06]} 31. Qc4 {[%emt 0:00:11]} Rce8 {[%emt 0:00:06]} 32. Raf1 {[%emt 0:00:09]} Qb5 {[%emt 0:00:06]} 33. Qd5 {[%emt 0:00:04]} Qc6 {[%emt 0:00:02]} 34. Qxc6 {[%emt 0:00:02]} Rxc6 {[%emt 0:00:01]} 35. Ra1 {[%emt 0:00:01]} Rd8 {[%emt 0:00:04]} 36. Rd2 {[%emt 0:00:07]} Rcd6 {[%emt 0:00:05]} 37. Rad1 {[%emt 0:00:02]} Rb8 {[%emt 0:00:02]} 38. Re1 {[%emt 0:00:04]} Rb7 {[%emt 0:00:02]} 39. Kf3 {[%emt 0:00:03]} Rdb6 {[%emt 0:00:01]} 40. Ree2 {[%emt 0:00:01]} Kf7 {[%emt 0:00:03]} 41. g4 {[%emt 0:00:04]} Re7 {[%emt 0:00:00]} 42. Rxe7+ {[%emt 0:00:05]} Kxe7 {[%emt 0:00:01]} 43. h4 {[%emt 0:00:01]} f5 {[%emt 0:00:05]} 44. gxf5 {[%emt 0:00:01]} gxf5 {[%emt 0:00:02]} 45. Kf4 {[%emt 0:00:01]} Kf6 {[%emt 0:00:01]} 46. Rg2 {[%emt 0:00:03]} a5 {[%emt 0:00:02]} 47. h5 {[%emt 0:00:02]} a4 {[%emt 0:00:03]} 48. h6 {[%emt 0:00:02]} Rb7 {[%emt 0:00:04]} 49. d4 {[%emt 0:00:09]} cxd4 {[%emt 0:00:02]} 50. cxd4 {[%emt 0:00:00]} Rb4 {[%emt 0:00:05]} 51. Rd2 {[%emt 0:00:01]} Ke6 {[%emt 0:00:03]} 52. Kg5 {[%emt 0:00:02]} Rb5 {[%emt 0:00:08]} 53. Re2+ {[%emt 0:00:03]} Kf7 {[%emt 0:00:02]} 54. Kf4 {[%emt 0:00:03]} Rd5 {[%emt 0:00:01]} 55. Rd2 {[%emt 0:00:01]} Kf6 {[%emt 0:00:01]} 56. Ke3 {[%emt 0:00:04]} Kg5 {[%emt 0:00:02]} 57. Rh2 {[%emt 0:00:01]} Rb5 {[%emt 0:00:02]} 58. Kd3 {[%emt 0:00:01]} Rb3+ {[%emt 0:00:01]} 59. Kc4 {[%emt 0:00:00]} Rg3 {[%emt 0:00:06]} 60. d5 {[%emt 0:00:01]} Rg4+ {[%emt 0:00:02]} 61. Kc5 {[%emt 0:00:00]} Kf6 {[%emt 0:00:03]} 62. d6 {[%emt 0:00:01]} Rg1 {[%emt 0:00:02]} 63. Rd2 {[%emt 0:00:03]} Rg8 {[%emt 0:00:02]} 64. d7 {[%emt 0:00:01]} Ke7 {[%emt 0:00:02]} 65. Kc6 {[%emt 0:00:01]} Rd8 {[%emt 0:00:01]} 66. Kc7 {[%emt 0:00:01]} Ra8 {[%emt 0:00:07]} 67. Re2+ {[%emt 0:00:01]} Kf6 {[%emt 0:00:01]} 68. d8=Q+ {[%emt 0:00:01]} Rxd8 1-0

[Event "GER-chW Blitz 2019"]
[Site "Magdeburg"]
[Date "2019.05.25"]
[Round "18.5"]
[White "Muetsch, Annmarie"]
[Black "Kopylov, Luba"]
[Result "1-0"]
[ECO "B52"]
[WhiteElo "2266"]
[BlackElo "2078"]
[Annotator "NA"]
[PlyCount "65"]
[EventDate "2019.05.25"]
[EventType "tourn"]
[EventCountry "GER"]
[SourceTitle "playchess.com"]
[Source "ChessBase"]
[SourceQuality "1"]
[TimeControl "180+2"]

1. e4 {[%emt 0:00:00]} c5 {[%emt 0:00:00]} 2. Nf3 {[%emt 0:00:01]} d6 {[%emt 0:00:00]} 3. Bb5+ {[%emt 0:00:03]} Bd7 {[%emt 0:00:01]} 4. c4 {[%emt 0:00:01]} Bxb5 {[%emt 0:00:02]} 5. cxb5 {[%emt 0:00:01]} Nf6 {[%emt 0:00:07]} 6. Nc3 {[%emt 0:00:01]} g6 {[%emt 0:00:03]} 7. d4 {[%emt 0:00:01]} cxd4 {[%emt 0:00:04]} 8. Nxd4 {[%emt 0:00:01]} Bg7 {[%emt 0:00:02]} 9. O-O {[%emt 0:00:02]} O-O {[%emt 0:00:02]} 10. Be3 {[%emt 0:00:03]} Nbd7 {[%emt 0:00:03]} 11. Qe2 {[%emt 0:00:11]} Rc8 {[%emt 0:00:02]} 12. Rac1 {[%emt 0:00:06]} Ne5 {[%emt 0:00:01]} 13. b3 {[%emt 0:00:20]} Neg4 {[%emt 0:00:12]} 14. Bd2 {[%emt 0:00:14]} Nd7 {[%emt 0:00:30]} 15. Qxg4 {[%emt 0:00:14]} Bxd4 {[%emt 0:00:01]} 16. Nd5 {[%emt 0:00:12]} Nf6 {[%emt 0:00:28]} 17. Qxc8 {[%emt 0:00:28]} Nxe4 {[%emt 0:01:34]} 18. Qxd8 {[%emt 0:00:04]} Rxd8 {[%emt 0:00:01]} 19. Be3 {[%emt 0:00:11]} Bxe3 {[%emt 0:00:06]} 20. fxe3 {[%emt 0:00:05]} e6 {[%emt 0:00:12]} 21. Nf6+ {[%emt 0:00:03]} Nxf6 {[%emt 0:00:01]} 22. Rxf6 {[%emt 0:00:01]} Kg7 {[%emt 0:00:00]} 23. Rf2 {[%emt 0:00:02]} Rd7 {[%emt 0:00:02]} 24. Rfc2 {[%emt 0:00:02]} Kf6 {[%emt 0:00:02]} 25. Rc7 {[%emt 0:00:01]} Rd8 {[%emt 0:00:01]} 26. Rxb7 {[%emt 0:00:02]} d5 {[%emt 0:00:02]} 27. Rcc7 {[%emt 0:00:02]} Rf8 {[%emt 0:00:01]} 28. Rxa7 {[%emt 0:00:02]} e5 {[%emt 0:00:02]} 29. b6 {[%emt 0:00:03]} d4 {[%emt 0:00:02]} 30. exd4 {[%emt 0:00:01]} exd4 {[%emt 0:00:00]} 31. Rd7 {[%emt 0:00:02]} Ke5 {[%emt 0:00:02]} 32. b7 {[%emt 0:00:02]} Ke4 {[%emt 0:00:01]} 33. Ra8 {[%emt 0:00:02]} 1-0

[Event "GER-chW Blitz 2019"]
[Site "Magdeburg"]
[Date "2019.05.25"]
[Round "18.6"]
[White "Siegl, Melina"]
[Black "Zimmer, Elke"]
[Result "1-0"]
[ECO "C50"]
[WhiteElo "2029"]
[BlackElo "1926"]
[Annotator "NA"]
[PlyCount "71"]
[EventDate "2019.05.25"]
[EventType "tourn"]
[EventCountry "GER"]
[SourceTitle "playchess.com"]
[Source "ChessBase"]
[SourceQuality "1"]
[TimeControl "180+2"]

1. e4 {[%emt 0:00:00]} e5 {[%emt 0:00:00]} 2. Nf3 {[%emt 0:00:01]} Nc6 {[%emt 0:00:00]} 3. Bc4 {[%emt 0:00:00]} Nf6 {[%emt 0:00:01]} 4. d3 {[%emt 0:00:02]} Bc5 {[%emt 0:00:02]} 5. c3 {[%emt 0:00:01]} d6 {[%emt 0:00:03]} 6. Bb3 {[%emt 0:00:01]} O-O {[%emt 0:00:03]} 7. h3 {[%emt 0:00:02]} Be6 {[%emt 0:00:05]} 8. Bc2 {[%emt 0:00:00]} Qd7 {[%emt 0:00:09]} 9. Nbd2 {[%emt 0:00:02]} a6 {[%emt 0:00:23]} 10. Nf1 {[%emt 0:00:02]} Ba7 {[%emt 0:00:12]} 11. g4 {[%emt 0:00:01]} h6 {[%emt 0:00:16]} 12. Ng3 {[%emt 0:00:02]} Nh7 {[%emt 0:00:02]} 13. Nf5 {[%emt 0:00:04]} Bxf5 {[%emt 0:00:04]} 14. gxf5 {[%emt 0:00:01]} Qe7 {[%emt 0:00:04]} 15. Rg1 {[%emt 0:00:03]} Kh8 {[%emt 0:00:04]} 16. Rg4 {[%emt 0:00:21]} f6 {[%emt 0:00:02]} 17. h4 {[%emt 0:00:05]} Qf7 {[%emt 0:00:07]} 18. Qe2 {[%emt 0:00:17]} d5 {[%emt 0:00:01]} 19. Bd2 {[%emt 0:00:06]} d4 {[%emt 0:00:09]} 20. Bb3 {[%emt 0:00:07]} Qh5 {[%emt 0:00:03]} 21. Nh2 {[%emt 0:00:15]} dxc3 {[%emt 0:00:10]} 22. bxc3 {[%emt 0:00:02]} Rad8 {[%emt 0:00:04]} 23. Nf1 {[%emt 0:00:34]} Na5 {[%emt 0:00:02]} 24. Bc2 {[%emt 0:00:03]} Qf7 {[%emt 0:00:10]} 25. Rg6 {[%emt 0:00:18]} Rd7 {[%emt 0:00:12]} 26. Ne3 {[%emt 0:00:14]} Bxe3 {[%emt 0:00:05]} 27. Qxe3 {[%emt 0:00:04]} Rfd8 {[%emt 0:00:07]} 28. Ke2 {[%emt 0:00:02]} Qe7 {[%emt 0:00:07]} 29. Rag1 {[%emt 0:00:11]} Qd6 {[%emt 0:00:02]} 30. Qg3 {[%emt 0:00:20]} Qe7 {[%emt 0:00:11]} 31. Bxh6 {[%emt 0:00:08]} Rg8 {[%emt 0:00:36]} 32. Bd2 {[%emt 0:00:01]} Qd6 {[%emt 0:00:05]} 33. h5 {[%emt 0:00:09]} Nc4 {[%emt 0:00:02]} 34. Bc1 {[%emt 0:00:06]} Ng5 {[%emt 0:00:11]} 35. Bxg5 {[%emt 0:00:05]} fxg5 {[%emt 0:00:01]} 36. Rxd6 {[%emt 0:00:01]} 1-0

[Event "GER-chW Blitz 2019"]
[Site "Magdeburg"]
[Date "2019.05.25"]
[Round "18.7"]
[White "Hofmann, Karina"]
[Black "Mader, Lena"]
[Result "1-0"]
[ECO "A03"]
[WhiteElo "1700"]
[BlackElo "1839"]
[Annotator "NA"]
[PlyCount "73"]
[EventDate "2019.05.25"]
[EventType "tourn"]
[EventCountry "GER"]
[SourceTitle "playchess.com"]
[Source "ChessBase"]
[SourceQuality "1"]
[TimeControl "180+2"]

1. f4 {[%emt 0:00:00]} Nf6 {[%emt 0:00:01]} 2. Nf3 {[%emt 0:00:01]} d5 {[%emt 0:00:06]} 3. e3 {[%emt 0:00:01]} c5 {[%emt 0:00:04]} 4. Bb5+ {[%emt 0:00:01]} Nc6 {[%emt 0:00:03]} 5. Ne5 {[%emt 0:00:03]} Bd7 {[%emt 0:00:03]} 6. Bxc6 {[%emt 0:00:02]} Bxc6 {[%emt 0:00:06]} 7. Nxc6 {[%emt 0:00:04]} bxc6 {[%emt 0:00:00]} 8. b3 {[%emt 0:00:01]} e6 {[%emt 0:00:07]} 9. Bb2 {[%emt 0:00:01]} Rb8 {[%emt 0:00:09]} 10. d3 {[%emt 0:00:02]} a5 {[%emt 0:00:06]} 11. a4 {[%emt 0:00:01]} Be7 {[%emt 0:00:17]} 12. Nd2 {[%emt 0:00:02]} O-O {[%emt 0:00:41]} 13. Qe2 {[%emt 0:00:02]} Rb7 {[%emt 0:00:30]} 14. O-O-O {[%emt 0:00:03]} Qb8 {[%emt 0:00:07]} 15. g4 {[%emt 0:00:02]} c4 {[%emt 0:00:16]} 16. dxc4 {[%emt 0:00:02]} Bb4 {[%emt 0:00:19]} 17. g5 {[%emt 0:00:15]} Bxd2+ {[%emt 0:00:16]} 18. Qxd2 {[%emt 0:00:02]} Ne4 {[%emt 0:00:02]} 19. Qe2 {[%emt 0:00:13]} Rb4 {[%emt 0:00:13]} 20. Rd4 {[%emt 0:00:16]} dxc4 {[%emt 0:00:04]} 21. Rxe4 {[%emt 0:00:05]} cxb3 {[%emt 0:00:02]} 22. Rxb4 {[%emt 0:00:08]} Qxb4 {[%emt 0:00:01]} 23. c3 {[%emt 0:00:16]} Qxa4 {[%emt 0:00:02]} 24. Rd1 {[%emt 0:00:10]} Qe4 {[%emt 0:00:06]} 25. Qd3 {[%emt 0:00:12]} Qg2 {[%emt 0:00:01]} 26. h4 {[%emt 0:00:16]} a4 {[%emt 0:00:01]} 27. c4 {[%emt 0:00:05]} Qf3 {[%emt 0:00:04]} 28. Qc3 {[%emt 0:00:08]} f6 {[%emt 0:00:02]} 29. gxf6 {[%emt 0:00:03]} Rxf6 {[%emt 0:00:01]} 30. Rg1 {[%emt 0:00:06]} Kh8 {[%emt 0:00:05]} 31. Rxg7 {[%emt 0:00:22]} Qf1+ 32. Kd2 {[%emt 0:00:03]} Qf2+ {[%emt 0:00:02]} 33. Kd3 {[%emt 0:00:05]} Qf1+ {[%emt 0:00:03]} 34. Kd4 {[%emt 0:00:08]} c5+ {[%emt 0:00:03]} 35. Kxc5 {[%emt 0:00:03]} Rf5+ 36. Kb4 Qh3 {[%emt 0:00:00]} 37. Rg3+ 1-0